[Event "*** Titled Tuesday 3|2 Blitz"]
[Site "Chess.com"]
[Date "2016.06.07"]
[Round "9"]
[White "howitzer14"]
[Black "Evgeny_Levin"]
[Result "1-0"]
[WhiteElo "2689"]
[BlackElo "2674"]
[TimeControl "180+2"]
[EndTime "18:52:20 PDT"]
[Termination "howitzer14 won by checkmate"]

1. e4 {[%clk 0:03:01.9]} 1... Nf6 {[%clk 0:02:59.8]} 2. e5 {[%clk 0:02:59.6]}
2... Nd5 {[%clk 0:03:01]} 3. d4 {[%clk 0:03:01.5]} 3... d6 {[%clk 0:03:02.2]} 4.
c4 {[%clk 0:03:03.4]} 4... Nb6 {[%clk 0:03:02.6]} 5. f4 {[%clk 0:03:05.3]} 5...
Bf5 {[%clk 0:02:58.7]} 6. Nc3 {[%clk 0:03:05.7]} 6... dxe5 {[%clk 0:02:58.5]} 7.
fxe5 {[%clk 0:03:07.6]} 7... Nc6 {[%clk 0:02:59.6]} 8. Nf3 {[%clk 0:03:08.7]}
8... e6 {[%clk 0:03:01]} 9. Be3 {[%clk 0:03:07]} 9... Be7 {[%clk 0:03:00.9]} 10.
d5 {[%clk 0:03:07.8]} 10... exd5 {[%clk 0:03:01]} 11. cxd5 {[%clk 0:03:09.7]}
11... Nb4 {[%clk 0:03:02.2]} 12. Nd4 {[%clk 0:03:11.4]} 12... Bd7 {[%clk
0:03:03.2]} 13. e6 {[%clk 0:03:11.1]} 13... fxe6 {[%clk 0:03:04.2]} 14. dxe6
{[%clk 0:03:13]} 14... Bc6 {[%clk 0:03:05.1]} 15. Nxc6 {[%clk 0:02:56.9]} 15...
Qxd1+ {[%clk 0:03:01.8]} 16. Rxd1 {[%clk 0:02:58.8]} 16... Nc2+ {[%clk
0:02:45.6]} 17. Kd2 {[%clk 0:02:59.6]} 17... Nxe3 {[%clk 0:02:46.9]} 18. Kxe3
{[%clk 0:03:00]} 18... bxc6 {[%clk 0:02:48.5]} 19. Ba6 {[%clk 0:03:01.5]} 19...
Rb8 {[%clk 0:02:45.5]} 20. b3 {[%clk 0:02:48.6]} 20... O-O {[%clk 0:02:34]} 21.
Rhf1 {[%clk 0:02:05.8]} 21... Bc5+ {[%clk 0:02:27.7]} 22. Kd3 {[%clk 0:01:48.6]}
22... Rfe8 {[%clk 0:02:03.8]} 23. Na4 {[%clk 0:01:25.5]} 23... Bd6 {[%clk
0:01:41.9]} 24. Rde1 {[%clk 0:01:21.4]} 24... Rbd8 {[%clk 0:01:27.8]} 25. Kc2
{[%clk 0:01:14]} 25... Bb4 {[%clk 0:01:22.9]} 26. Re2 {[%clk 0:01:10.5]} 26...
Rd6 {[%clk 0:01:14.2]} 27. Rf4 {[%clk 0:01:00.1]} 27... Ba3 {[%clk 0:00:59.4]}
28. Nxb6 {[%clk 0:00:44.4]} 28... axb6 {[%clk 0:00:59.2]} 29. b4 {[%clk
0:00:45.7]} 29... c5 {[%clk 0:00:38.8]} 30. e7 {[%clk 0:00:39.3]} 30... g5
{[%clk 0:00:19.7]} 31. Bc4+ {[%clk 0:00:40]} 31... Kg7 {[%clk 0:00:20.9]} 32.
Rf7+ {[%clk 0:00:40.3]} 32... Kg6 {[%clk 0:00:21.9]} 33. Rf8 {[%clk 0:00:41.9]}
33... Rxe7 {[%clk 0:00:12.8]} 34. Rxe7 {[%clk 0:00:41.7]} 34... Bxb4 {[%clk
0:00:14.5]} 35. Bd3+ {[%clk 0:00:41.5]} 35... Kh5 {[%clk 0:00:13.8]} 36. Rxh7+
{[%clk 0:00:36.4]} 36... Kg4 {[%clk 0:00:14.9]} 37. Be2# {[%clk 0:00:37.6]} 1-0

[Event "*** Titled Tuesday 3|2 Blitz"]
[Site "Chess.com"]
[Date "2016.06.07"]
[Round "9"]
[White "michaelq2d5"]
[Black "IIIlllII1llIl"]
[Result "0-1"]
[WhiteElo "2481"]
[BlackElo "2476"]
[TimeControl "180+2"]
[EndTime "18:52:38 PDT"]
[Termination "IIIlllII1llIl won by resignation"]

1. d4 {[%clk 0:03:01.9]} 1... Nf6 {[%clk 0:02:58.9]} 2. c4 {[%clk 0:03:02.9]}
2... g6 {[%clk 0:02:59.7]} 3. Nc3 {[%clk 0:03:04]} 3... Bg7 {[%clk 0:03:00.8]}
4. e4 {[%clk 0:03:05.1]} 4... d6 {[%clk 0:03:01.8]} 5. Be2 {[%clk 0:03:06.5]}
5... O-O {[%clk 0:03:02.6]} 6. Nf3 {[%clk 0:03:08.1]} 6... c5 {[%clk 0:03:03.7]}
7. d5 {[%clk 0:03:08.9]} 7... Bg4 {[%clk 0:03:01.2]} 8. O-O {[%clk 0:03:06.9]}
8... Na6 {[%clk 0:02:58.8]} 9. Be3 {[%clk 0:03:04.7]} 9... Bxf3 {[%clk
0:02:50.6]} 10. Bxf3 {[%clk 0:03:05.5]} 10... Nd7 {[%clk 0:02:51.8]} 11. Be2
{[%clk 0:03:05.1]} 11... Nc7 {[%clk 0:02:52.3]} 12. Qc2 {[%clk 0:02:59.9]} 12...
Rb8 {[%clk 0:02:51.2]} 13. a4 {[%clk 0:03:00.9]} 13... Na6 {[%clk 0:02:49]} 14.
Qd2 {[%clk 0:02:53.1]} 14... Re8 {[%clk 0:02:33.6]} 15. Na2 {[%clk 0:02:36.3]}
15... e6 {[%clk 0:02:17]} 16. Rab1 {[%clk 0:02:34.8]} 16... exd5 {[%clk
0:02:17.2]} 17. exd5 {[%clk 0:02:34.6]} 17... Nf6 {[%clk 0:02:09.7]} 18. Bf3
{[%clk 0:02:25.2]} 18... Ne4 {[%clk 0:02:08.4]} 19. Qc2 {[%clk 0:02:19.6]} 19...
f5 {[%clk 0:02:08.8]} 20. b4 {[%clk 0:02:14.3]} 20... cxb4 {[%clk 0:01:42.6]}
21. Nxb4 {[%clk 0:01:58.2]} 21... Nac5 {[%clk 0:01:25.6]} 22. Nd3 {[%clk
0:01:56.3]} 22... Nc3 {[%clk 0:00:40.1]} 23. Nxc5 {[%clk 0:01:28.2]} 23... dxc5
{[%clk 0:00:28.8]} 24. Rb3 {[%clk 0:01:10.4]} 24... Nxa4 {[%clk 0:00:26.6]} 25.
Ra3 {[%clk 0:01:11.2]} 25... Nb6 {[%clk 0:00:22.3]} 26. Rxa7 {[%clk 0:01:07.5]}
26... Nd7 {[%clk 0:00:23.3]} 27. Rb1 {[%clk 0:01:06.9]} 27... b6 {[%clk
0:00:21.5]} 28. Bf4 {[%clk 0:00:41.1]} 28... Ne5 {[%clk 0:00:22.5]} 29. Be2
{[%clk 0:00:31.7]} 29... Qh4 {[%clk 0:00:20.7]} 30. Bg3 {[%clk 0:00:30.3]} 30...
Qf6 {[%clk 0:00:21.1]} 31. Bxe5 {[%clk 0:00:23.7]} 31... Rxe5 {[%clk 0:00:22]}
32. Bd3 {[%clk 0:00:23.2]} 32... Rbe8 {[%clk 0:00:22.7]} 33. Raa1 {[%clk
0:00:22.4]} 33... f4 {[%clk 0:00:20]} 34. f3 {[%clk 0:00:21.6]} 34... Qh4 {[%clk
0:00:19.9]} 35. Qf2 {[%clk 0:00:18.6]} 35... Qg5 {[%clk 0:00:19.1]} 36. Kf1
{[%clk 0:00:15.5]} 36... Re3 {[%clk 0:00:20.1]} 37. Ra3 {[%clk 0:00:15.1]} 37...
Bd4 {[%clk 0:00:20.4]} 38. Qd2 {[%clk 0:00:13.3]} 38... Rxf3+ {[%clk 0:00:21.5]}
0-1

[Event "*** Titled Tuesday 3|2 Blitz"]
[Site "Chess.com"]
[Date "2016.06.07"]
[Round "9"]
[White "FearlessKing64"]
[Black "Andrejkin"]
[Result "1-0"]
[WhiteElo "2096"]
[BlackElo "2103"]
[TimeControl "180+2"]
[EndTime "18:52:51 PDT"]
[Termination "FearlessKing64 won by resignation"]

1. e4 {[%clk 0:03:01.9]} 1... c5 {[%clk 0:03:00.8]} 2. Nf3 {[%clk 0:03:02.5]}
2... d6 {[%clk 0:03:02.4]} 3. d4 {[%clk 0:03:04.1]} 3... cxd4 {[%clk 0:03:04.2]}
4. Nxd4 {[%clk 0:03:05.8]} 4... Nf6 {[%clk 0:03:05.5]} 5. f3 {[%clk 0:03:06.9]}
5... a6 {[%clk 0:03:06.8]} 6. c4 {[%clk 0:03:07.6]} 6... g6 {[%clk 0:03:03.3]}
7. Be3 {[%clk 0:03:02.4]} 7... Bg7 {[%clk 0:03:04]} 8. Qd2 {[%clk 0:03:04]} 8...
Nc6 {[%clk 0:03:04.6]} 9. Nc3 {[%clk 0:03:05.6]} 9... O-O {[%clk 0:03:03.6]} 10.
Rc1 {[%clk 0:03:06.4]} 10... Re8 {[%clk 0:03:04.2]} 11. Be2 {[%clk 0:03:07.3]}
11... Nxd4 {[%clk 0:02:51.9]} 12. Bxd4 {[%clk 0:03:07.1]} 12... Bd7 {[%clk
0:02:51]} 13. O-O {[%clk 0:03:06.9]} 13... Bc6 {[%clk 0:02:47.8]} 14. b3 {[%clk
0:03:07.4]} 14... Rc8 {[%clk 0:02:45.9]} 15. Be3 {[%clk 0:03:08.7]} 15... Qa5
{[%clk 0:02:42.3]} 16. Rfd1 {[%clk 0:03:08.5]} 16... Nd7 {[%clk 0:02:31.6]} 17.
Kf1 {[%clk 0:03:04]} 17... Rb8 {[%clk 0:02:20.2]} 18. Rc2 {[%clk 0:02:54]} 18...
b5 {[%clk 0:02:20.4]} 19. cxb5 {[%clk 0:02:54.9]} 19... Bxb5 {[%clk 0:02:20.2]}
20. Nxb5 {[%clk 0:02:55.3]} 20... Qxd2 {[%clk 0:02:19.9]} 21. Rdxd2 {[%clk
0:02:53.2]} 21... axb5 {[%clk 0:02:20.8]} 22. Rc7 {[%clk 0:02:52.5]} 22... Nf8
{[%clk 0:01:44.4]} 23. Rdc2 {[%clk 0:02:43.2]} 23... Ne6 {[%clk 0:01:41.2]} 24.
Ra7 {[%clk 0:02:42.9]} 24... Nd4 {[%clk 0:01:38.5]} 25. Rcc7 {[%clk 0:02:35.6]}
25... Nxe2 {[%clk 0:01:30.6]} 26. Kxe2 {[%clk 0:02:37.5]} 26... Bf6 {[%clk
0:01:31]} 27. Kd3 {[%clk 0:02:36.1]} 27... Rec8 {[%clk 0:01:25.9]} 28. Rxc8+
{[%clk 0:02:34.1]} 28... Rxc8 {[%clk 0:01:26.7]} 29. Rb7 {[%clk 0:02:30.9]}
29... Ra8 {[%clk 0:01:27.3]} 30. Ra7 {[%clk 0:02:27.9]} 30... Rc8 {[%clk
0:01:26.8]} 31. a4 {[%clk 0:02:23.8]} 31... bxa4 {[%clk 0:01:25.8]} 32. bxa4
{[%clk 0:02:25.7]} 32... Rc3+ {[%clk 0:01:24.2]} 33. Kd2 {[%clk 0:02:25.7]}
33... Ra3 {[%clk 0:01:23.5]} 34. Bh6 {[%clk 0:02:22.9]} 34... Bc3+ {[%clk
0:01:13.8]} 35. Kc2 {[%clk 0:02:16.7]} 35... f6 {[%clk 0:01:05.7]} 36. Rxe7
{[%clk 0:02:15.9]} 36... Be5 {[%clk 0:01:05.4]} 37. Ra7 {[%clk 0:02:08.6]} 37...
Ra2+ {[%clk 0:01:05.7]} 38. Kd3 {[%clk 0:02:09.7]} 38... Rxg2 {[%clk 0:01:06.2]}
39. Kc4 {[%clk 0:02:10.8]} 39... Rxh2 {[%clk 0:01:05.2]} 40. Be3 {[%clk
0:02:01.3]} 40... Re2 {[%clk 0:00:59.3]} 41. Kd3 {[%clk 0:02:01.7]} 41... Ra2
{[%clk 0:00:57.6]} 42. a5 {[%clk 0:02:02.8]} 42... h5 {[%clk 0:00:55.4]} 43. a6
{[%clk 0:02:02.1]} 43... g5 {[%clk 0:00:54.1]} 44. Ra8+ {[%clk 0:02:02.3]} 44...
Kg7 {[%clk 0:00:51.5]} 45. a7 {[%clk 0:02:03.8]} 45... h4 {[%clk 0:00:50.1]} 46.
Rc8 {[%clk 0:01:59.8]} 46... Ra3+ {[%clk 0:00:49.6]} 47. Ke2 {[%clk 0:01:55.8]}
47... Ra2+ {[%clk 0:00:50.1]} 48. Kf1 {[%clk 0:01:50.6]} 48... Ra1+ {[%clk
0:00:47.2]} 49. Ke2 {[%clk 0:01:41]} 49... Ra2+ {[%clk 0:00:48]} 50. Kd1 {[%clk
0:01:38.5]} 50... Ra1+ {[%clk 0:00:48.8]} 51. Kc2 {[%clk 0:01:35.9]} 51... Ra2+
{[%clk 0:00:49.4]} 52. Kb3 {[%clk 0:01:36.7]} 52... Rb2+ {[%clk 0:00:47.9]} 53.
Ka3 {[%clk 0:01:34.7]} 53... Re2 {[%clk 0:00:43.6]} 54. a8=Q {[%clk 0:01:34.5]}
54... Rxe3+ {[%clk 0:00:44.3]} 55. Kb4 {[%clk 0:01:33.2]} 55... Rxf3 {[%clk
0:00:38.1]} 56. Rg8+ {[%clk 0:01:30.9]} 56... Kh6 {[%clk 0:00:36.1]} 57. Qe8
{[%clk 0:01:30.8]} 57... Bc3+ {[%clk 0:00:35.5]} 58. Kc4 {[%clk 0:01:28.6]} 1-0

[Event "*** Titled Tuesday 3|2 Blitz"]
[Site "Chess.com"]
[Date "2016.06.07"]
[Round "9"]
[White "Silent_Terror"]
[Black "JusticeBot"]
[Result "1/2-1/2"]
[WhiteElo "2489"]
[BlackElo "2522"]
[TimeControl "180+2"]
[EndTime "18:53:02 PDT"]
[Termination "Game drawn by repetition"]

1. e4 {[%clk 0:03:00.5]} 1... e5 {[%clk 0:03:01.6]} 2. Nf3 {[%clk 0:03:00.6]}
2... Nc6 {[%clk 0:03:02.7]} 3. Bb5 {[%clk 0:03:01.8]} 3... a6 {[%clk 0:03:03]}
4. Ba4 {[%clk 0:03:03.1]} 4... Nf6 {[%clk 0:03:01.9]} 5. O-O {[%clk 0:03:03.9]}
5... b5 {[%clk 0:03:03.6]} 6. Bb3 {[%clk 0:03:04.9]} 6... Bb7 {[%clk 0:03:05.5]}
7. Re1 {[%clk 0:03:04.5]} 7... Bc5 {[%clk 0:03:06.7]} 8. d3 {[%clk 0:03:03]}
8... d6 {[%clk 0:03:04.1]} 9. c3 {[%clk 0:03:02.7]} 9... Bb6 {[%clk 0:03:00.8]}
10. h3 {[%clk 0:03:02.2]} 10... Ne7 {[%clk 0:03:00.3]} 11. Nh4 {[%clk
0:02:51.3]} 11... Qd7 {[%clk 0:02:51.1]} 12. Nd2 {[%clk 0:02:48]} 12... g5
{[%clk 0:02:45.1]} 13. Nhf3 {[%clk 0:02:46.9]} 13... g4 {[%clk 0:02:31]} 14. Ng5
{[%clk 0:02:47.6]} 14... g3 {[%clk 0:02:05.2]} 15. Bxf7+ {[%clk 0:02:19.7]}
15... Kf8 {[%clk 0:02:04.8]} 16. Rf1 {[%clk 0:02:16.7]} 16... h6 {[%clk
0:01:58.2]} 17. Be6 {[%clk 0:02:15.5]} 17... Bxf2+ {[%clk 0:01:54.9]} 18. Kh1
{[%clk 0:02:12.2]} 18... hxg5 {[%clk 0:01:53.9]} 19. Bxd7 {[%clk 0:02:11.4]}
19... Nxd7 {[%clk 0:01:55.8]} 20. Qg4 {[%clk 0:01:55.7]} 20... Nf6 {[%clk
0:01:19.7]} 21. Qe6 {[%clk 0:01:49.9]} 21... Nh5 {[%clk 0:00:52.9]} 22. Nf3
{[%clk 0:01:21.2]} 22... Bc8 {[%clk 0:00:53]} 23. Qb3 {[%clk 0:01:18.3]} 23...
Nf4 {[%clk 0:00:54]} 24. Bxf4 {[%clk 0:01:16.7]} 24... gxf4 {[%clk 0:00:23.9]}
25. Ng5 {[%clk 0:01:16.2]} 25... d5 {[%clk 0:00:20.3]} 26. exd5 {[%clk
0:01:16.4]} 26... Rh5 {[%clk 0:00:20.2]} 27. d6 {[%clk 0:00:45.7]} 27... Rxg5
{[%clk 0:00:19.9]} 28. dxe7+ {[%clk 0:00:47.1]} 28... Kxe7 {[%clk 0:00:21.2]}
29. Qd5 {[%clk 0:00:44]} 29... Rb8 {[%clk 0:00:20.9]} 30. Rxf2 {[%clk
0:00:40.8]} 30... gxf2 {[%clk 0:00:20.2]} 31. Qc5+ {[%clk 0:00:42.1]} 31... Kd7
{[%clk 0:00:16.4]} 32. Qxf2 {[%clk 0:00:42.4]} 32... Bb7 {[%clk 0:00:17.6]} 33.
Rg1 {[%clk 0:00:27.2]} 33... Rh8 {[%clk 0:00:18.3]} 34. Kh2 {[%clk 0:00:25.8]}
34... Rg3 {[%clk 0:00:19.9]} 35. Qe2 {[%clk 0:00:16.7]} 35... Bf3 {[%clk
0:00:14.5]} 36. Qxe5 {[%clk 0:00:15.7]} 36... Rhg8 {[%clk 0:00:11.4]} 37. Qf5+
{[%clk 0:00:14.4]} 37... Kc6 {[%clk 0:00:11.3]} 38. h4 {[%clk 0:00:11.2]} 38...
Rxg2+ {[%clk 0:00:11.7]} 39. Rxg2 {[%clk 0:00:12.8]} 39... Rxg2+ {[%clk
0:00:12.8]} 40. Kh3 {[%clk 0:00:14.4]} 40... Rg3+ {[%clk 0:00:14]} 41. Kh2
{[%clk 0:00:14.9]} 41... Rg2+ {[%clk 0:00:15.5]} 42. Kh3 {[%clk 0:00:16.1]}
42... Rg3+ {[%clk 0:00:11.4]} 43. Kh2 {[%clk 0:00:17.3]} 43... Rg2+ {[%clk
0:00:12.1]} 44. Kh3 {[%clk 0:00:18.7]} 1/2-1/2

[Event "*** Titled Tuesday 3|2 Blitz"]
[Site "Chess.com"]
[Date "2016.06.07"]
[Round "9"]
[White "AllStarShark"]
[Black "chessking2151"]
[Result "0-1"]
[WhiteElo "2147"]
[BlackElo "2337"]
[TimeControl "180+2"]
[EndTime "18:53:58 PDT"]
[Termination "chessking2151 won by checkmate"]

1. d4 {[%clk 0:03:01.9]} 1... Nf6 {[%clk 0:03:00.6]} 2. c4 {[%clk 0:03:00.8]}
2... c5 {[%clk 0:03:00.4]} 3. d5 {[%clk 0:03:01.5]} 3... b5 {[%clk 0:03:01.4]}
4. cxb5 {[%clk 0:03:03.4]} 4... a6 {[%clk 0:02:56]} 5. bxa6 {[%clk 0:03:05.3]}
5... g6 {[%clk 0:02:56.9]} 6. Nc3 {[%clk 0:03:06.5]} 6... Bg7 {[%clk 0:02:57.8]}
7. Nf3 {[%clk 0:03:07.8]} 7... O-O {[%clk 0:02:59.2]} 8. e4 {[%clk 0:03:09.1]}
8... d6 {[%clk 0:03:00.8]} 9. Be2 {[%clk 0:03:09.5]} 9... Bxa6 {[%clk
0:03:02.2]} 10. O-O {[%clk 0:03:10.6]} 10... Qb6 {[%clk 0:02:58.6]} 11. a4
{[%clk 0:03:06.5]} 11... Nbd7 {[%clk 0:02:35.5]} 12. Bxa6 {[%clk 0:02:55.6]}
12... Qxa6 {[%clk 0:02:36]} 13. Qc2 {[%clk 0:02:55.4]} 13... Rfb8 {[%clk
0:02:35.5]} 14. Ra3 {[%clk 0:02:35.3]} 14... Ne8 {[%clk 0:02:34.3]} 15. Nb5
{[%clk 0:02:34.3]} 15... Qc8 {[%clk 0:02:28.9]} 16. b3 {[%clk 0:02:31.3]} 16...
Nc7 {[%clk 0:02:28.2]} 17. Nxc7 {[%clk 0:02:30.2]} 17... Qxc7 {[%clk 0:02:30.1]}
18. Bd2 {[%clk 0:02:25.3]} 18... Nb6 {[%clk 0:02:23.2]} 19. a5 {[%clk
0:02:24.4]} 19... Nd7 {[%clk 0:02:23.5]} 20. Bc3 {[%clk 0:02:18.7]} 20... Qb7
{[%clk 0:02:20.2]} 21. Bxg7 {[%clk 0:02:18.4]} 21... Kxg7 {[%clk 0:02:22.1]} 22.
Rfa1 {[%clk 0:02:15]} 22... Ra6 {[%clk 0:02:22.5]} 23. Nd2 {[%clk 0:02:08.8]}
23... Qb4 {[%clk 0:02:16.7]} 24. Ra4 {[%clk 0:02:05.8]} 24... Qb5 {[%clk
0:02:12.6]} 25. Qc3+ {[%clk 0:02:02.9]} 25... f6 {[%clk 0:02:13.1]} 26. Qc4
{[%clk 0:01:46.7]} 26... Qb7 {[%clk 0:01:58.5]} 27. f4 {[%clk 0:01:40.5]} 27...
f5 {[%clk 0:01:47.8]} 28. exf5 {[%clk 0:01:38.2]} 28... gxf5 {[%clk 0:01:47.2]}
29. R1a3 {[%clk 0:01:31.4]} 29... Nf6 {[%clk 0:01:47.5]} 30. Nf3 {[%clk
0:01:21.3]} 30... Nxd5 {[%clk 0:01:37.1]} 31. Ng5 {[%clk 0:01:14.4]} 31... Ra7
{[%clk 0:01:30.2]} 32. a6 {[%clk 0:01:11.9]} 32... Qc6 {[%clk 0:01:25.3]} 33.
Ne6+ {[%clk 0:01:09.2]} 33... Kf6 {[%clk 0:01:19]} 34. Nd4 {[%clk 0:01:05.2]}
34... Qa8 {[%clk 0:01:14.4]} 35. Nb5 {[%clk 0:01:06]} 35... e6 {[%clk
0:01:07.7]} 36. Nxd6 {[%clk 0:00:57.5]} 36... Qc6 {[%clk 0:00:52.3]} 37. Nb7
{[%clk 0:00:49.2]} 37... Rc8 {[%clk 0:00:17.6]} 38. Ra5 {[%clk 0:00:48.4]} 38...
Qb6 {[%clk 0:00:10.9]} 39. Nxc5 {[%clk 0:00:43.5]} 39... Rac7 {[%clk 0:00:11.6]}
40. Qd4+ {[%clk 0:00:33.8]} 40... Kf7 {[%clk 0:00:12.5]} 41. a7 {[%clk
0:00:30.4]} 41... Rxc5 {[%clk 0:00:13.6]} 42. Rxc5 {[%clk 0:00:28.9]} 42... Rxc5
{[%clk 0:00:15.5]} 43. Qxc5 {[%clk 0:00:10.2]} 43... Qxc5+ {[%clk 0:00:16.4]}
44. Kf1 {[%clk 0:00:09.3]} 44... Qxa3 {[%clk 0:00:18.3]} 45. a8=Q {[%clk
0:00:05]} 45... Qxa8 {[%clk 0:00:20.2]} 46. Ke2 {[%clk 0:00:05.5]} 46... Nxf4+
{[%clk 0:00:21.4]} 47. Ke3 {[%clk 0:00:06.3]} 47... Nxg2+ {[%clk 0:00:22.5]} 48.
Kd4 {[%clk 0:00:07.5]} 48... Qc6 {[%clk 0:00:21]} 49. b4 {[%clk 0:00:08.7]}
49... Kf6 {[%clk 0:00:17.3]} 50. h4 {[%clk 0:00:09.2]} 50... e5+ {[%clk
0:00:19.2]} 51. Kd3 {[%clk 0:00:09.8]} 51... Nf4+ {[%clk 0:00:20.2]} 52. Ke3
{[%clk 0:00:10.7]} 52... Qc3+ {[%clk 0:00:20.9]} 53. Kf2 {[%clk 0:00:11.6]}
53... e4 {[%clk 0:00:22.2]} 54. h5 {[%clk 0:00:12.6]} 54... Qf3+ {[%clk
0:00:23.7]} 55. Kg1 {[%clk 0:00:13.1]} 55... Qg2# {[%clk 0:00:25.2]} 0-1

[Event "*** Titled Tuesday 3|2 Blitz"]
[Site "Chess.com"]
[Date "2016.06.07"]
[Round "9"]
[White "Generalas"]
[Black "oskariot"]
[Result "1-0"]
[WhiteElo "2241"]
[BlackElo "2390"]
[TimeControl "180+2"]
[EndTime "18:54:25 PDT"]
[Termination "Generalas won by resignation"]

1. e4 {[%clk 0:03:01.9]} 1... a6 {[%clk 0:02:59.7]} 2. d4 {[%clk 0:03:02.5]}
2... a5 {[%clk 0:03:01.6]} 3. Nc3 {[%clk 0:03:02.9]} 3... a4 {[%clk 0:03:03.5]}
4. a3 {[%clk 0:03:02.7]} 4... h6 {[%clk 0:03:04.1]} 5. Nf3 {[%clk 0:03:03.8]}
5... h5 {[%clk 0:03:05.1]} 6. Bc4 {[%clk 0:03:04.9]} 6... e6 {[%clk 0:03:05.9]}
7. O-O {[%clk 0:03:05.5]} 7... c6 {[%clk 0:03:07]} 8. d5 {[%clk 0:03:06.4]} 8...
h4 {[%clk 0:03:07.4]} 9. d6 {[%clk 0:03:06.4]} 9... b5 {[%clk 0:03:06.7]} 10.
Ba2 {[%clk 0:03:06.4]} 10... Na6 {[%clk 0:03:06.6]} 11. e5 {[%clk 0:03:06.8]}
11... Qb6 {[%clk 0:03:02.3]} 12. Be3 {[%clk 0:03:06.7]} 12... c5 {[%clk
0:03:00.4]} 13. h3 {[%clk 0:03:07.5]} 13... Bb7 {[%clk 0:03:01]} 14. Qe2 {[%clk
0:03:03.2]} 14... Bc6 {[%clk 0:02:43.2]} 15. b4 {[%clk 0:03:00.2]} 15... axb3
{[%clk 0:02:40.9]} 16. cxb3 {[%clk 0:02:58.1]} 16... Qb7 {[%clk 0:02:34.6]} 17.
Bb1 {[%clk 0:02:58.6]} 17... Nh6 {[%clk 0:02:28.4]} 18. Bd3 {[%clk 0:02:57.6]}
18... Bxf3 {[%clk 0:01:58.9]} 19. Qxf3 {[%clk 0:02:54.7]} 19... Qxf3 {[%clk
0:01:57.7]} 20. gxf3 {[%clk 0:02:56.6]} 20... f6 {[%clk 0:01:58.6]} 21. f4
{[%clk 0:02:51.7]} 21... Nf7 {[%clk 0:01:57.6]} 22. Bxb5 {[%clk 0:02:51.1]}
22... fxe5 {[%clk 0:01:56.1]} 23. fxe5 {[%clk 0:02:51.8]} 23... Nxe5 {[%clk
0:01:52.4]} 24. Ne4 {[%clk 0:02:52.8]} 24... Rh5 {[%clk 0:01:29.3]} 25. f4
{[%clk 0:02:48.6]} 25... Nf7 {[%clk 0:01:23]} 26. Rfd1 {[%clk 0:02:48.8]} 26...
Rd5 {[%clk 0:01:18.5]} 27. Bc4 {[%clk 0:02:45.7]} 27... Rf5 {[%clk 0:01:02.2]}
28. b4 {[%clk 0:02:28]} 28... Nxb4 {[%clk 0:00:13.2]} 29. axb4 {[%clk
0:02:24.6]} 29... Rxa1 {[%clk 0:00:15.1]} 30. Rxa1 {[%clk 0:02:25.2]} 30... Nxd6
{[%clk 0:00:17]} 31. Ra8+ {[%clk 0:02:07.6]} 31... Kf7 {[%clk 0:00:17.7]} 32.
Rxf8+ {[%clk 0:02:07.4]} 32... Kxf8 {[%clk 0:00:17.7]} 33. Nxd6 {[%clk
0:02:08.4]} 33... Rf6 {[%clk 0:00:18.7]} 34. bxc5 {[%clk 0:02:06.4]} 34... Rg6+
{[%clk 0:00:20]} 35. Kf2 {[%clk 0:02:06.4]} 35... Rg3 {[%clk 0:00:21.9]} 36. Bf1
{[%clk 0:01:51.7]} 36... Ke7 {[%clk 0:00:21.6]} 37. Ne4 {[%clk 0:01:45.6]} 37...
Rg6 {[%clk 0:00:22.2]} 38. Kf3 {[%clk 0:01:45]} 38... Kd8 {[%clk 0:00:20.2]} 39.
Bf2 {[%clk 0:01:45.2]} 39... Rh6 {[%clk 0:00:21]} 40. Kg4 {[%clk 0:01:45.6]}
40... Kc8 {[%clk 0:00:13.2]} 41. Bxh4 {[%clk 0:01:45.6]} 41... Kc7 {[%clk
0:00:14.7]} 42. Bf2 {[%clk 0:01:40.7]} 42... Kc6 {[%clk 0:00:15.7]} 43. Bc4
{[%clk 0:01:38.6]} 43... Rg6+ {[%clk 0:00:15.8]} 44. Kf3 {[%clk 0:01:37.6]}
44... Rh6 {[%clk 0:00:16.8]} 45. h4 {[%clk 0:01:37.6]} 45... Rg6 {[%clk
0:00:15.9]} 46. h5 {[%clk 0:01:37.6]} 46... Rh6 {[%clk 0:00:16.9]} 47. Kg4
{[%clk 0:01:37.5]} 47... g6 {[%clk 0:00:17.6]} 48. hxg6 {[%clk 0:01:19.6]} 48...
Rxg6+ {[%clk 0:00:18.8]} 49. Kf3 {[%clk 0:01:21.1]} 49... Rg8 {[%clk 0:00:20.2]}
50. Bd4 {[%clk 0:01:18.2]} 50... Ra8 {[%clk 0:00:20.7]} 51. Nc3 {[%clk 0:01:15]}
51... Ra3 {[%clk 0:00:21]} 52. Bb5+ {[%clk 0:01:13.9]} 52... Kc7 {[%clk
0:00:22.3]} 53. Ke4 {[%clk 0:01:14.9]} 53... Ra8 {[%clk 0:00:21.3]} 54. Be5+
{[%clk 0:01:14.9]} 54... Kd8 {[%clk 0:00:22.2]} 55. Na4 {[%clk 0:01:13]} 55...
Ra5 {[%clk 0:00:21.6]} 56. Nc3 {[%clk 0:01:12.2]} 56... Ke7 {[%clk 0:00:22]} 57.
Bd6+ {[%clk 0:01:11.2]} 57... Ke8 {[%clk 0:00:23.2]} 58. Kd4 {[%clk 0:01:11.6]}
58... Ra1 {[%clk 0:00:23.5]} 59. Ne4 {[%clk 0:01:01.7]} 59... Rd1+ {[%clk
0:00:24.2]} 60. Ke5 {[%clk 0:01:02.6]} 60... Rd5+ {[%clk 0:00:24.6]} 61. Kf6
{[%clk 0:01:00.9]} 61... Rf5+ {[%clk 0:00:25.7]} 62. Kg6 {[%clk 0:01:01.8]}
62... Kd8 {[%clk 0:00:26.9]} 63. Nf6 {[%clk 0:00:59.9]} 63... Kc8 {[%clk
0:00:19.5]} 64. Bd3 {[%clk 0:00:58.9]} 64... Rxf6+ {[%clk 0:00:16.7]} 65. Kxf6
{[%clk 0:00:59.1]} 1-0